fUST/lending_fUST_20250624
["ID","MTS","AMOUNT","RATE_DAILY","PERIOD"]
[367184770,1750695099260,-199.9746023,0.00024174,2]
[367184771,1750695099270,-3000.0,0.0002418,2]
[367184772,1750695099281,-3000.0,0.0002419,2]
[367184773,1750695099290,-420.0,0.00024199,2]
[367184774,1750695099300,-500.0,0.000242,2]
[367184775,1750695099309,-3000.0,0.000242,2]
[367184776,1750695099318,-3000.0,0.0002421,2]
[367184777,1750695099328,-3000.0,0.0002422,2]
[367184778,1750695099338,-3000.0,0.0002423,2]
[367184779,1750695099347,-3000.0,0.0002424,2]
[367184780,1750695099356,-3000.0,0.0002425,2]
[367184781,1750695099365,-3000.0,0.0002426,2]
[367184782,1750695099375,-159.1393301,0.00024263,2]
[367184783,1750695099384,-177.1504183,0.00024264,2]
[367184784,1750695099394,-3000.0,0.0002427,2]
[367184785,1750695099404,-3000.0,0.0002428,2]
[367184786,1750695099413,-460.0,0.00024284,2]
[367184787,1750695099423,-460.0,0.00024284,2]
[367184788,1750695099433,-571.09,0.00024284,2]
[367184789,1750695099442,-591.18,0.00024284,2]
[367184790,1750695099452,-460.0,0.00024284,2]
[367184791,1750695099461,-695.26,0.00024284,2]
[367184792,1750695099470,-460.0,0.00024284,2]
[367184793,1750695099480,-460.0,0.00024284,2]
[367184794,1750695099489,-3000.0,0.0002429,2]
[367184795,1750695099498,-3000.0,0.000243,2]
[367184796,1750695099507,-160.0,0.00024305,2]
[367184797,1750695099517,-3000.0,0.0002431,2]
[367184798,1750695099530,-1670.21376153,0.00024312,2]
[367184799,1750695099539,-2000.0,0.00024316,2]
[367184800,1750695099548,-1168.47711221,0.00024316,2]
[367184801,1750695099558,-2000.0,0.00024316,2]
[367184802,1750695099568,-780.40808827,0.00024316,2]
[367184803,1750695099578,-504.56001612,0.00024316,2]
[367184804,1750695099588,-1150.62165608,0.00024316,2]
[367184805,1750695099599,-1116.3322076,0.00024316,2]
[367184806,1750695099609,-2000.0,0.00024316,2]
[367184807,1750695099619,-567.12984049,0.00024316,2]
[367184808,1750695099628,-604.40286676,0.00024316,2]
[367184809,1750695099638,-2400.0,0.00024316,2]
[367184810,1750695099647,-1006.97994736,0.00024316,2]
[367184811,1750695099656,-1766.35310527,0.00024316,2]
[367184812,1750695099665,-501.79970799,0.00024316,2]
[367184813,1750695099675,-1222.83201314,0.00024316,2]
[367184814,1750695099686,-2002.06073969,0.00024316,2]
[367184815,1750695099697,-2000.0,0.00024316,2]
[367184816,1750695099708,-2000.0,0.00024316,2]
[367184817,1750695099717,-2000.0,0.00024316,2]
[367184818,1750695099727,-2000.0,0.00024316,2]
[367184819,1750695099736,-3000.0,0.0002432,2]
[367184820,1750695099746,-1122.96,0.00024322,2]
[367184821,1750695099756,-870.0,0.00024322,2]
[367184822,1750695099766,-467.63,0.00024322,2]
[367184823,1750695099776,-460.0,0.00024322,2]
[367184824,1750695099786,-568.24,0.00024322,2]
[367184825,1750695099795,-460.0,0.00024322,2]
[367184826,1750695099805,-713.65,0.00024322,2]
[367184827,1750695099814,-6530.67,0.00024322,2]
[367184828,1750695099824,-460.0,0.00024322,2]
[367184829,1750695099834,-460.0,0.00024322,2]
[367184830,1750695099844,-3000.0,0.0002433,2]
[367184831,1750695099856,-460.0,0.0002433,2]
[367184832,1750695099867,-1117.73,0.0002433,2]
[367184833,1750695099877,-460.0,0.0002433,2]
[367184834,1750695099887,-1093.95,0.0002433,2]
[367184835,1750695099897,-460.0,0.0002433,2]
[367184836,1750695099907,-1143.04,0.0002433,2]
[367184837,1750695099917,-460.0,0.00024331,2]
[367184838,1750695099926,-1364.13,0.00024331,2]
[367184839,1750695099936,-460.0,0.00024331,2]
[367184840,1750695099945,-792.16,0.00024331,2]
[367184841,1750695099955,-701.88,0.00024331,2]
[367184842,1750695099964,-1076.17,0.00024331,2]
[367184843,1750695099974,-593.68,0.00024331,2]
[367184844,1750695099984,-646.56,0.00024332,2]
[367184845,1750695099994,-572.49,0.00024332,2]
[367184846,1750695100003,-460.0,0.00024332,2]
[367184847,1750695100013,-5755.87,0.00024332,2]
[367184848,1750695100022,-6124.54,0.00024332,2]
[367184849,1750695100032,-460.0,0.00024332,2]
[367184850,1750695100041,-1683.77,0.00024332,2]
[367184851,1750695100050,-696.61,0.00024332,2]
[367184852,1750695100060,-1042.25,0.00024332,2]
[367184853,1750695100069,-460.0,0.00024332,2]
[367184854,1750695100078,-460.0,0.00024332,2]
[367184855,1750695100088,-2967.75,0.00024332,2]
[367184856,1750695100098,-6587.16,0.00024332,2]
[367184857,1750695100107,-1335.52,0.00024332,2]
[367184858,1750695100117,-460.0,0.00024332,2]
[367184859,1750695100127,-2444.61,0.00024332,2]
[367184860,1750695100137,-816.98,0.00024332,2]
[367184861,1750695100147,-2026.45,0.00024332,2]
[367184862,1750695100157,-4341.83,0.00024332,2]
[367184863,1750695100167,-1295.39,0.00024332,2]
[367184864,1750695100177,-1428.47,0.00024332,2]
[367184865,1750695100186,-716.5,0.00024333,2]
[367184866,1750695100197,-712.96,0.00024333,2]
[367184867,1750695100207,-694.31,0.00024333,2]
[367184868,1750695100218,-585.87,0.00024333,2]
[367184869,1750695100228,-193.18138622,0.00024333,2]
[367184870,1750695100237,-460.0,0.00024333,2]
[367184871,1750695100247,-460.0,0.00024333,2]
[367184872,1750695100257,-1472.57,0.00024333,2]
[367184873,1750695100266,-1101.95,0.00024333,2]
[367184874,1750695100276,-697.18,0.00024333,2]
[367184875,1750695100286,-519.63,0.00024333,2]
[367184876,1750695100295,-506.34,0.00024333,2]
[367184877,1750695100304,-460.0,0.00024333,2]
[367184878,1750695100314,-529.96,0.00024333,2]
[367184879,1750695100323,-460.0,0.00024333,2]
[367184880,1750695100333,-460.0,0.00024333,2]
[367184881,1750695100342,-460.0,0.00024333,2]
[367184882,1750695100351,-772.43,0.00024333,2]
[367184883,1750695100361,-460.0,0.00024333,2]
[367184884,1750695100370,-703.03,0.00024333,2]
[367184885,1750695100379,-2988.47,0.00024333,2]
[367184886,1750695100389,-8032.03,0.00024333,2]
[367184887,1750695100398,-206.55776585,0.00024333,2]
[367184888,1750695100407,-460.0,0.00024333,2]
[367184889,1750695100416,-1030.53,0.00024333,2]
[367184890,1750695100426,-629.75,0.00024333,2]
[367184891,1750695100435,-597.62,0.00024333,2]
[367184892,1750695100444,-643.92,0.00024333,2]
[367184893,1750695100453,-460.0,0.00024333,2]
[367184894,1750695100463,-699.24,0.00024333,2]
[367184895,1750695100473,-460.0,0.00024333,2]
[367184896,1750695100482,-460.0,0.00024333,2]
[367184897,1750695100492,-460.0,0.00024333,2]
[367184898,1750695100502,-3562.05,0.00024333,2]
[367184899,1750695100511,-460.0,0.00024333,2]
[367184900,1750695100525,-1834.78,0.00024333,2]
[367184901,1750695100534,-1370.2,0.00024333,2]
[367184902,1750695100544,-460.0,0.00024333,2]
[367184903,1750695100554,-460.0,0.00024333,2]
[367184904,1750695100563,-893.28,0.00024333,2]
[367184905,1750695100574,-364.95956372,0.00024333,2]
[367184906,1750695100584,-460.0,0.00024333,2]
[367184907,1750695100593,-1685.24,0.00024333,2]
[367184908,1750695100606,-464.44,0.00024333,2]
[367184909,1750695100615,-544.51,0.00024333,2]
[367184910,1750695100625,-423.86809494,0.00024333,2]
[367184911,1750695100635,-481.68,0.00024333,2]
[367184912,1750695100644,-460.0,0.00024333,2]
[367184913,1750695100653,-460.0,0.00024333,2]
[367184914,1750695100663,-631.24,0.00024333,2]
[367184915,1750695100672,-460.0,0.00024333,2]
[367184916,1750695100681,-460.0,0.00024333,2]
[367184917,1750695100692,-468.97,0.00024333,2]
[367184918,1750695100701,-952.49,0.00024333,2]
[367184919,1750695100711,-547.71,0.00024333,2]
[367184920,1750695100720,-886.57,0.00024333,2]
[367184921,1750695100731,-3204.23,0.00024333,2]
[367184922,1750695100741,-1147.11,0.00024333,2]
[367184923,1750695100751,-1939.51,0.00024333,2]
[367184924,1750695100761,-488.19,0.00024333,2]
[367184925,1750695100771,-460.0,0.00024333,2]
[367184926,1750695100781,-1339.33,0.00024333,2]
[367184927,1750695100790,-619.12,0.00024333,2]
[367184928,1750695100800,-778.82,0.00024333,2]
[367184929,1750695100809,-482.75,0.00024333,2]
[367184930,1750695100819,-1075.57,0.00024333,2]
[367184931,1750695100828,-1310.04,0.00024333,2]
[367184932,1750695100838,-208.39932745,0.00024333,2]
[367184933,1750695100847,-472.68,0.00024333,2]
[367184934,1750695100856,-1833.22,0.00024333,2]
[367184935,1750695100866,-717.95,0.00024333,2]
[367184936,1750695100875,-703.62,0.00024333,2]
[367184937,1750695100884,-460.0,0.00024334,2]
[367184938,1750695100894,-460.0,0.00024334,2]
[367184939,1750695100903,-819.57,0.00024334,2]
[367184940,1750695100912,-460.0,0.00024335,2]
[367184941,1750695100922,-899.93,0.00024335,2]
[367184942,1750695100931,-1247.69,0.00024335,2]
[367184943,1750695100940,-1042.81,0.00024335,2]
[367184944,1750695100949,-470.17,0.00024335,2]
[367184945,1750695100958,-460.0,0.00024335,2]
[367184946,1750695100967,-1298.26,0.00024335,2]
[367184947,1750695100978,-460.0,0.00024335,2]
[367184948,1750695100987,-2612.41,0.00024335,2]
[367184949,1750695100996,-460.0,0.00024335,2]
[367184950,1750695101005,-393.33961788,0.00024335,2]
[367184951,1750695101015,-460.0,0.00024335,2]
[367184952,1750695101025,-535.48,0.00024335,2]
[367184953,1750695101035,-460.0,0.00024335,2]
[367184954,1750695101045,-541.1,0.00024335,2]
[367184955,1750695101055,-480.44,0.00024335,2]
[367184956,1750695101066,-460.0,0.00024335,2]
[367184957,1750695101075,-1061.12,0.00024335,2]
[367184958,1750695101084,-1081.71,0.00024335,2]
[367184959,1750695101093,-863.96,0.00024335,2]
[367184960,1750695101103,-667.4,0.00024335,2]
[367184961,1750695101113,-814.51,0.00024335,2]
[367184962,1750695101122,-1796.51,0.00024335,2]
[367184963,1750695101131,-620.23,0.00024335,2]
[367184964,1750695101140,-460.0,0.00024335,2]
[367184965,1750695101150,-908.71,0.00024335,2]
[367184966,1750695101160,-1836.22,0.00024335,2]
[367184967,1750695101170,-2045.52,0.00024335,2]
[367184968,1750695101179,-460.0,0.00024335,2]
[367184969,1750695101332,-460.0,0.00024335,2]
[367184970,1750695101341,-1612.44,0.00024335,2]
[367184971,1750695101351,-1029.94,0.00024335,2]
[367184972,1750695101360,-6941.15,0.00024335,2]
[367184973,1750695101373,-6321.75,0.00024335,2]
[367184974,1750695101385,-794.47,0.00024335,2]
[367184975,1750695101395,-460.0,0.00024335,2]
[367184976,1750695101405,-6105.4,0.00024335,2]
[367184977,1750695101414,-4430.2,0.00024335,2]
[367184978,1750695101424,-893.18,0.00024335,2]
[367184979,1750695101433,-1681.36,0.00024335,2]
[367184980,1750695101443,-550.8,0.00024335,2]
[367184981,1750695101453,-945.85,0.00024335,2]
[367184982,1750695101462,-1150.64,0.00024335,2]
[367184983,1750695101472,-505.55,0.00024335,2]
[367184984,1750695101482,-460.0,0.00024335,2]
[367184985,1750695101492,-7241.11,0.00024335,2]
[367184986,1750695101501,-4135.45,0.00024335,2]
[367184987,1750695101510,-701.76,0.00024335,2]
[367184988,1750695101520,-460.0,0.00024335,2]
[367184989,1750695101533,-579.96,0.00024335,2]
[367184990,1750695101542,-503.24,0.00024335,2]
[367184991,1750695101552,-950.84,0.00024335,2]
[367184992,1750695101561,-742.78,0.00024335,2]
[367184993,1750695101570,-1064.83,0.00024335,2]
[367184994,1750695101579,-3476.022302,0.0002434,2]
[367184995,1750695101589,-1500.0,0.00024368,2]
[367184996,1750695101598,-1500.0,0.00024368,2]
[367184997,1750695101607,-1081.95582221,0.00024368,2]
[367184998,1750695101616,-581.96,0.00024399,2]
[367184999,1750695101626,-460.0,0.00024399,2]
[367185000,1750695101634,-460.0,0.00024399,2]
[367185001,1750695101644,-572.39,0.00024399,2]
[367185002,1750695101654,-460.0,0.00024399,2]
[367185003,1750695101663,-460.0,0.00024399,2]
[367185004,1750695101672,-1389.87,0.00024399,2]
[367185005,1750695101681,-992.22,0.00024399,2]
[367185006,1750695101690,-568.46436094,0.00024399,2]
[367185007,1750695101700,-460.0,0.00024399,2]
[367185008,1750695101709,-200.0,0.00024399,2]
[367185009,1750695101718,-460.0,0.00024399,2]
[367185010,1750695101729,-460.0,0.00024399,2]
[367185011,1750695101738,-460.0,0.00024399,2]
[367185012,1750695101748,-827.68,0.00024399,2]
[367185013,1750695101757,-460.0,0.00024399,2]
[367185014,1750695101766,-460.0,0.00024399,2]
[367185015,1750695101775,-752.67,0.00024399,2]
[367185016,1750695101784,-460.0,0.00024399,2]
[367185017,1750695101794,-911.77,0.00024399,2]
[367185018,1750695101804,-460.0,0.00024399,2]
[367185019,1750695101813,-534.54,0.00024399,2]
[367185020,1750695101822,-725.0,0.00024399,2]
[367185021,1750695101832,-460.0,0.00024399,2]
[367185022,1750695101841,-1633.04,0.00024399,2]
[367185023,1750695101851,-529.23,0.00024399,2]
[367185024,1750695101861,-460.0,0.00024399,2]
[367185025,1750695101871,-460.0,0.00024399,2]
[367185026,1750695101880,-225.36768534,0.00024399,2]
[367185027,1750695101889,-312.22218803,0.00024399,2]
[367185028,1750695101899,-507.07,0.00024399,2]
[367185029,1750695101908,-608.9,0.00024399,2]
[367185030,1750695101917,-1000.0,0.00024421,2]
[367185031,1750695101926,-300.0,0.00024421,2]
[367185032,1750695101935,-250.0,0.00024421,2]
[367185033,1750695101944,-500.0,0.00024444,2]
[367185034,1750695101954,-793.19,0.00024446,2]
[367185035,1750695101963,-460.0,0.00024446,2]
[367185036,1750695101972,-460.0,0.00024446,2]
[367185037,1750695101983,-1166.81,0.00024446,2]
[367185038,1750695101992,-2699.37,0.00024446,2]
[367185039,1750695102002,-1049.98,0.00024446,2]
[367185040,1750695102011,-653.64,0.00024446,2]
[367185041,1750695102020,-556.62,0.00024446,2]
[367185042,1750695102029,-607.5,0.00024446,2]
[367185043,1750695102038,-460.0,0.00024446,2]
[367185044,1750695102047,-739.3,0.00024446,2]
[367185045,1750695102057,-460.0,0.00024446,2]
[367185046,1750695102066,-2097.03,0.00024446,2]
[367185047,1750695102076,-2271.15,0.00024446,2]
[367185048,1750695102085,-1150.94,0.00024446,2]
[367185049,1750695102094,-2679.84,0.00024446,2]
[367185050,1750695102104,-16823.56,0.00024446,2]
[367185051,1750695102113,-1221.69,0.00024448,2]
[367185052,1750695102123,-460.0,0.00024448,2]
[367185053,1750695102132,-1343.17,0.00024448,2]
[367185054,1750695102141,-648.91,0.00024448,2]
[367185055,1750695102150,-460.0,0.00024448,2]
[367185056,1750695102159,-756.65,0.00024448,2]
[367185057,1750695102169,-3518.29,0.00024448,2]
[367185058,1750695102178,-460.0,0.00024448,2]
[367185059,1750695102188,-460.0,0.00024448,2]
[367185060,1750695102198,-1125.19,0.00024448,2]
[367185061,1750695102207,-312.67574976,0.00024448,2]
[367185062,1750695102217,-722.87,0.00024448,2]
[367185063,1750695102228,-460.0,0.00024448,2]
[367185064,1750695102237,-486.89,0.00024448,2]
[367185065,1750695102247,-460.0,0.00024448,2]
[367185066,1750695102256,-832.81,0.00024448,2]
[367185067,1750695102266,-746.46,0.00024448,2]
[367185068,1750695102275,-460.0,0.00024448,2]
[367185069,1750695102284,-993.68,0.00024448,2]
[367185070,1750695102293,-913.06,0.00024448,2]
[367185071,1750695102303,-663.99,0.00024448,2]
[367185072,1750695102312,-495.38,0.00024448,2]
[367185073,1750695102322,-700.84,0.00024448,2]
[367185074,1750695102331,-1058.12,0.00024448,2]
[367185075,1750695102341,-3000.0,0.00024512,2]
[367185076,1750695102351,-460.0,0.00024558,2]
[367185077,1750695102361,-460.0,0.00024558,2]
[367185078,1750695102370,-571.09,0.00024558,2]
[367185079,1750695102379,-591.18,0.00024558,2]
[367185080,1750695102389,-460.0,0.00024558,2]
[367185081,1750695102398,-695.26,0.00024558,2]
[367185082,1750695102408,-460.0,0.00024558,2]
[367185083,1750695102418,-460.0,0.00024558,2]
[367185084,1750695102427,-1122.96,0.00024596,2]
[367185085,1750695102437,-870.0,0.00024596,2]
[367185086,1750695102447,-467.63,0.00024596,2]
[367185087,1750695102457,-568.24,0.00024596,2]
[367185088,1750695102467,-460.0,0.00024596,2]
[367185089,1750695102478,-713.65,0.00024596,2]
[367185090,1750695102488,-6530.67,0.00024596,2]
[367185091,1750695102499,-460.0,0.00024596,2]
[367185092,1750695102508,-460.0,0.00024596,2]
[367185093,1750695102520,-250.0,0.000246,2]
[367185094,1750695102533,-460.0,0.00024604,2]
[367185095,1750695102544,-1117.73,0.00024604,2]
[367185096,1750695102554,-460.0,0.00024604,2]
[367185097,1750695102564,-1093.95,0.00024604,2]
[367185098,1750695102574,-460.0,0.00024604,2]
[367185099,1750695102584,-1143.04,0.00024604,2]
[367185100,1750695102593,-460.0,0.00024605,2]
[367185101,1750695102605,-1364.13,0.00024605,2]
[367185102,1750695102615,-460.0,0.00024605,2]
[367185103,1750695102624,-792.16,0.00024605,2]
[367185104,1750695102634,-701.88,0.00024605,2]
[367185105,1750695102643,-593.68,0.00024605,2]
[367185106,1750695102652,-646.56,0.00024606,2]
[367185107,1750695102662,-572.49,0.00024606,2]
[367185108,1750695102671,-460.0,0.00024606,2]
[367185109,1750695102681,-5755.87,0.00024606,2]
[367185110,1750695102691,-6124.54,0.00024606,2]
[367185111,1750695102702,-460.0,0.00024606,2]
[367185112,1750695102712,-1683.77,0.00024606,2]
[367185113,1750695102722,-696.61,0.00024606,2]
[367185114,1750695102732,-1042.25,0.00024606,2]
[367185115,1750695102742,-460.0,0.00024606,2]
[367185116,1750695102751,-460.0,0.00024606,2]
[367185117,1750695102761,-2967.75,0.00024606,2]
[367185118,1750695102771,-6587.16,0.00024606,2]
[367185119,1750695102781,-1335.52,0.00024606,2]
[367185120,1750695102790,-460.0,0.00024606,2]
[367185121,1750695102800,-2444.61,0.00024606,2]
[367185122,1750695102809,-816.98,0.00024606,2]
[367185123,1750695102820,-2026.45,0.00024606,2]
[367185124,1750695102830,-4341.83,0.00024606,2]
[367185125,1750695102839,-1295.39,0.00024606,2]
[367185126,1750695102849,-1428.47,0.00024606,2]
[367185127,1750695102859,-716.5,0.00024607,2]
[367185128,1750695102868,-712.96,0.00024607,2]
[367185129,1750695102878,-694.31,0.00024607,2]
[367185130,1750695102888,-585.87,0.00024607,2]
[367185131,1750695102897,-460.0,0.00024607,2]
[367185132,1750695102907,-460.0,0.00024607,2]
[367185133,1750695102916,-1472.57,0.00024607,2]
[367185134,1750695102926,-1101.95,0.00024607,2]
[367185135,1750695102935,-697.18,0.00024607,2]
[367185136,1750695102944,-519.63,0.00024607,2]
[367185137,1750695102954,-506.34,0.00024607,2]
[367185138,1750695102962,-460.0,0.00024607,2]
[367185139,1750695102972,-529.96,0.00024607,2]
[367185140,1750695102982,-460.0,0.00024607,2]
[367185141,1750695102992,-460.0,0.00024607,2]
[367185142,1750695103002,-460.0,0.00024607,2]
[367185143,1750695103012,-772.43,0.00024607,2]
[367185144,1750695103022,-460.0,0.00024607,2]
[367185145,1750695103031,-703.03,0.00024607,2]
[367185146,1750695103041,-2988.47,0.00024607,2]
[367185147,1750695103051,-8032.03,0.00024607,2]
[367185148,1750695103060,-460.0,0.00024607,2]
[367185149,1750695103070,-629.75,0.00024607,2]
[367185150,1750695103079,-597.62,0.00024607,2]
[367185151,1750695103089,-643.92,0.00024607,2]
[367185152,1750695103099,-460.0,0.00024607,2]
[367185153,1750695103109,-699.24,0.00024607,2]
[367185154,1750695103118,-460.0,0.00024607,2]
[367185155,1750695103128,-310.0724515,0.00024607,2]
[367185156,1750695103137,-460.0,0.00024607,2]
[367185157,1750695103147,-3562.05,0.00024607,2]
[367185158,1750695103156,-460.0,0.00024607,2]
[367185159,1750695103166,-1834.78,0.00024607,2]
[367185160,1750695103176,-1370.2,0.00024607,2]
[367185161,1750695103186,-460.0,0.00024607,2]
[367185162,1750695103196,-460.0,0.00024607,2]
[367185163,1750695103206,-893.28,0.00024607,2]
[367185164,1750695103216,-460.0,0.00024607,2]
[367185165,1750695103226,-1685.24,0.00024607,2]
[367185166,1750695103236,-464.44,0.00024607,2]
[367185167,1750695103245,-544.51,0.00024607,2]
[367185168,1750695103255,-481.68,0.00024607,2]
[367185169,1750695103264,-460.0,0.00024607,2]
[367185170,1750695103274,-309.25633915,0.00024607,2]
[367185171,1750695103283,-631.24,0.00024607,2]
[367185172,1750695103293,-460.0,0.00024607,2]
[367185173,1750695103303,-460.0,0.00024607,2]
[367185174,1750695103312,-468.97,0.00024607,2]
[367185175,1750695103321,-952.49,0.00024607,2]
[367185176,1750695103331,-547.71,0.00024607,2]
[367185177,1750695103340,-886.57,0.00024607,2]
[367185178,1750695103350,-3204.23,0.00024607,2]
[367185179,1750695103359,-1147.11,0.00024607,2]
[367185180,1750695103369,-1939.51,0.00024607,2]
[367185181,1750695103378,-488.19,0.00024607,2]
[367185182,1750695103388,-460.0,0.00024607,2]
[367185183,1750695103398,-1339.33,0.00024607,2]
[367185184,1750695103408,-619.12,0.00024607,2]
[367185185,1750695103417,-778.82,0.00024607,2]
[367185186,1750695103428,-482.75,0.00024607,2]
[367185187,1750695103438,-1075.57,0.00024607,2]
[367185188,1750695103447,-1310.04,0.00024607,2]
[367185189,1750695103456,-472.68,0.00024607,2]
[367185190,1750695103466,-1833.22,0.00024607,2]
[367185191,1750695103475,-717.95,0.00024607,2]
[367185192,1750695103485,-703.62,0.00024607,2]
[367185193,1750695103494,-272.61327056,0.00024608,2]
[367185194,1750695103503,-460.0,0.00024608,2]
[367185195,1750695103513,-819.57,0.00024608,2]
[367185196,1750695103525,-460.0,0.00024609,2]
[367185197,1750695103535,-899.93,0.00024609,2]
[367185198,1750695103544,-1247.69,0.00024609,2]
[367185199,1750695103553,-1042.81,0.00024609,2]
[367185200,1750695103562,-470.17,0.00024609,2]
[367185201,1750695103571,-460.0,0.00024609,2]
[367185202,1750695103581,-1298.26,0.00024609,2]
[367185203,1750695103590,-460.0,0.00024609,2]
[367185204,1750695103601,-2612.41,0.00024609,2]
[367185205,1750695103612,-460.0,0.00024609,2]
[367185206,1750695103621,-460.0,0.00024609,2]
[367185207,1750695103630,-535.48,0.00024609,2]
[367185208,1750695103640,-460.0,0.00024609,2]
[367185209,1750695103649,-541.1,0.00024609,2]
[367185210,1750695103659,-480.44,0.00024609,2]
[367185211,1750695103668,-460.0,0.00024609,2]
[367185212,1750695103678,-1061.12,0.00024609,2]
[367185213,1750695103688,-1081.71,0.00024609,2]
[367185214,1750695103697,-863.96,0.00024609,2]
[367185215,1750695103707,-667.4,0.00024609,2]
[367185216,1750695103716,-814.51,0.00024609,2]
[367185217,1750695103726,-1796.51,0.00024609,2]
[367185218,1750695103736,-620.23,0.00024609,2]
[367185219,1750695103745,-460.0,0.00024609,2]
[367185220,1750695103755,-908.71,0.00024609,2]
[367185221,1750695103765,-1836.22,0.00024609,2]
[367185222,1750695103775,-2045.52,0.00024609,2]
[367185223,1750695103784,-460.0,0.00024609,2]
[367185224,1750695103793,-460.0,0.00024609,2]
[367185225,1750695103803,-1612.44,0.00024609,2]
[367185226,1750695103812,-1029.94,0.00024609,2]
[367185227,1750695103822,-6941.15,0.00024609,2]
[367185228,1750695103832,-6321.75,0.00024609,2]
[367185229,1750695103842,-794.47,0.00024609,2]
[367185230,1750695103852,-460.0,0.00024609,2]
[367185231,1750695103862,-6105.4,0.00024609,2]
[367185232,1750695103872,-4430.2,0.00024609,2]
[367185233,1750695103882,-893.18,0.00024609,2]
[367185234,1750695103891,-1681.36,0.00024609,2]
[367185235,1750695103901,-550.8,0.00024609,2]
[367185236,1750695103910,-945.85,0.00024609,2]
[367185237,1750695103920,-1150.64,0.00024609,2]
[367185238,1750695103929,-505.55,0.00024609,2]
[367185239,1750695103939,-460.0,0.00024609,2]
[367185240,1750695103948,-7241.11,0.00024609,2]
[367185241,1750695103957,-4135.45,0.00024609,2]
[367185242,1750695103966,-701.76,0.00024609,2]
[367185243,1750695103976,-460.0,0.00024609,2]
[367185244,1750695103985,-579.96,0.00024609,2]
[367185245,1750695103995,-503.24,0.00024609,2]
[367185246,1750695104005,-950.84,0.00024609,2]
[367185247,1750695104014,-742.78,0.00024609,2]
[367185248,1750695104024,-1064.83,0.00024609,2]
[367185249,1750695104033,-420.0,0.00024617,2]
[367185250,1750695104043,-300.56288983,0.0002465,2]
[367185251,1750695104052,-200.0123441,0.0002465,2]
[367185252,1750695104061,-9569.51190828,0.0002465,2]
[367185253,1750695104071,-3619.82991166,0.0002465,2]
[367185254,1750695104080,-500.0,0.00024657,2]
[367185255,1750695104089,-434.88,0.00024657,4]
[367185256,1750695104099,-434.88,0.00024657,4]
[367185257,1750695104108,-434.88,0.00024657,4]
[367185258,1750695104116,-434.88,0.00024657,4]
[367185259,1750695104126,-434.88,0.00024657,4]
[367185260,1750695104135,-434.88,0.00024657,4]
[367185261,1750695104278,-434.88,0.00024657,4]
[367185262,1750695104288,-434.88,0.00024657,4]
[367185263,1750695104297,-434.88,0.00024657,4]
[367185264,1750695104306,-434.88,0.00024657,4]
[367185265,1750695104315,-434.88,0.00024657,4]
[367185266,1750695104326,-500.0,0.00024658,2]
[367185267,1750695104335,-150.0,0.00024658,2]
[367185268,1750695104344,-1000.0,0.00024658,2]
[367185269,1750695104354,-1000.0,0.00024658,2]